bitfinex/quotes_SOLUSD_20251002
["timestamp","ask_amount","ask_price","bid_price","bid_amount"]
[1759428125731,0.53,230.26,230.21,25.14379231]
[1759428125935,0.1,230.26,230.24,20.8]
[1759428127447,0.1,230.26,230.24,21.52]
[1759428127631,0.1,230.26,230.24,25.86311547]
[1759428128762,0.1,230.26,230.24,25.14311547]
[1759428130440,0.1,230.26,230.24,20.8]
[1759428133360,0.1,230.26,230.25,0.72]
[1759428133738,0.1,230.26,230.25,1.22]
[1759428134160,0.1,230.26,230.25,22.02]
[1759428134538,0.1,230.26,230.25,26.36310532]
[1759428136864,1e-08,230.26,230.25,26.36310532]
[1759428137339,1e-08,230.29,230.25,37.22086862]
[1759428137541,404.33954963,230.44,230.29,20.8]
[1759428137871,404.33954963,230.44,230.25,15.70086862]
[1759428137872,10.87647521,230.42,230.33,20.8]
[1759428138042,10.87647521,230.42,230.35,20.8]
[1759428138748,10.87647521,230.42,230.36,4.34103142]
[1759428140364,10.87647521,230.42,230.38,0.5]
[1759428140546,11.30647521,230.42,230.38,0.5]
[1759428141164,10.87647521,230.4,230.35,20.8]
[1759428141364,0.43,230.39,230.35,20.8]
[1759428141880,10.87647521,230.4,230.35,20.8]
[1759428142068,0.43,230.39,230.35,20.8]
[1759428142244,0.43,230.38,230.35,20.8]
[1759428142666,4.3399171,230.42,230.35,20.8]
[1759428142844,0.43,230.39,230.35,20.8]
[1759428143158,10.87647521,230.4,230.35,20.8]
[1759428143355,11.30647521,230.4,230.35,20.8]
[1759428143750,0.43,230.39,230.36,20.8]
[1759428143951,0.43,230.38,230.36,20.8]
[1759428144367,0.43,230.38,230.33,20.8]
[1759428144566,0.43,230.38,230.33,21.46]
[1759428144769,15.216889,230.4,230.33,0.66]
[1759428145074,0.43,230.39,230.34,20.8]
[1759428145255,10.87647521,230.38,230.34,20.8]
[1759428145771,10.87647521,230.38,230.33,0.66]
[1759428145772,10.87647521,230.38,230.33,20.8]
[1759428145972,10.87647521,230.38,230.33,21.46]
[1759428146160,10.87647521,230.38,230.33,20.8]
[1759428146474,10.87647521,230.38,230.32,20.8]
[1759428146773,10.87647521,230.38,230.34,0.66]
[1759428147364,10.87647521,230.38,230.34,20.8]
[1759428147570,10.87647521,230.38,230.34,21.46]
[1759428148078,10.87647521,230.38,230.34,25.80133136]
[1759428152581,10.87647521,230.38,230.36,0.5]
[1759428153278,10.87647521,230.43,230.37,0.71]
[1759428153669,30.6,230.42,230.37,0.71]
[1759428153977,30.6,230.42,230.38,0.71]
[1759428154282,30.6,230.42,230.4,4.34027777]
[1759428154470,30.6,230.42,230.4,5.05027777]
[1759428154670,30.6,230.42,230.41,0.71]
[1759428154980,30.6,230.42,230.4,4.34027777]
[1759428155182,30.6,230.42,230.4,5.05027777]
[1759428155564,30.6,230.42,230.4,4.34027777]
[1759428155765,30.6,230.42,230.41,0.71]
[1759428156066,400.0,230.44,230.43,20.8]
[1759428156384,400.0,230.44,230.43,25.84971271]
[1759428157292,400.0,230.44,230.43,21.51]
[1759428157482,400.0,230.44,230.43,25.84971271]
[1759428159490,400.0,230.44,230.43,25.13971271]
[1759428159706,400.0,230.44,230.43,25.84971271]
[1759428159871,400.0,230.44,230.43,21.51]
[1759428160269,400.0,230.44,230.43,25.84971271]
[1759428161073,399.28,230.44,230.43,56.46971271]
[1759428161383,398.56,230.44,230.43,56.96971271]
[1759428161584,346.33512499,230.44,230.43,79.46971271]
[1759428161790,1e-08,230.5,230.49,30.87647521]
[1759428161962,1e-08,230.5,230.49,31.24]
[1759428162369,1e-08,230.5,230.49,35.57858301]
[1759428162977,1e-08,230.5,230.49,4.33858301]
[1759428163179,1e-08,230.5,230.49,35.63858301]
[1759428163794,1e-08,230.5,230.49,20.8]
[1759428163966,0.69000001,230.5,230.47,20.8]
[1759428164292,1e-08,230.5,230.47,20.8]
[1759428164590,1e-08,230.5,230.48,4.33877125]
[1759428165791,1e-08,230.5,230.46,25.13898089]
[1759428165982,0.69,230.49,230.46,4.33898089]
[1759428166187,0.69,230.48,230.44,4.33936736]
[1759428166370,0.69,230.47,230.44,4.33936736]
[1759428166573,31.3,230.49,230.44,4.33936736]
[1759428166898,31.99,230.49,230.44,4.33936736]
[1759428167090,0.69,230.49,230.44,4.33936736]
[1759428167294,31.97,230.48,230.45,20.8]
[1759428167478,31.28,230.48,230.45,20.8]
[1759428168202,0.69,230.48,230.45,20.8]
[1759428168381,31.28,230.47,230.45,20.8]
[1759428168580,31.28,230.47,230.44,15.18817833]
[1759428168581,31.28,230.47,230.46,20.8]
[1759428168776,31.28,230.47,230.46,25.13914779]
[1759428169014,31.26,230.47,230.46,15.18701726]
[1759428169209,31.26,230.47,230.46,35.98701726]
[1759428169395,31.26,230.47,230.46,25.13914779]
[1759428169589,31.95,230.47,230.46,20.8]
[1759428170802,31.26,230.47,230.46,20.8]
[1759428171707,31.95,230.47,230.46,20.8]
[1759428172603,31.95,230.47,230.46,25.13914779]
[1759428172982,31.26,230.47,230.46,25.13914779]
[1759428173800,31.93,230.47,230.46,25.13914779]
[1759428173983,1e-08,230.5,230.46,25.13914779]
[1759428174179,31.91,230.49,230.46,25.13914779]
[1759428174385,31.2,230.48,230.46,25.13914779]
[1759428174586,1e-08,230.5,230.46,35.98701726]
[1759428174787,1e-08,230.5,230.48,20.8]
[1759428174986,1e-08,230.5,230.46,15.18701726]
[1759428174987,31.22,230.49,230.46,15.18701726]
[1759428175606,0.69,230.48,230.46,25.13914779]
[1759428175821,0.69,230.47,230.46,25.13914779]
[1759428176310,31.22,230.47,230.46,4.33914779]
[1759428176510,0.69,230.49,230.46,15.18701726]
[1759428176686,31.24,230.48,230.46,15.18701726]
[1759428176883,31.24,230.48,230.46,25.13914779]
[1759428177300,31.93,230.48,230.46,25.13914779]
[1759428177614,31.24,230.47,230.46,4.33914779]
[1759428178114,31.24,230.47,230.46,10.84786947]
[1759428179210,1e-08,230.5,230.46,10.84786947]
[1759428179400,31.24,230.47,230.46,10.84786947]
[1759428179710,1e-08,230.5,230.46,10.84786947]
[1759428179915,31.22,230.49,230.46,10.84786947]
[1759428180210,31.22,230.48,230.46,15.18701726]
[1759428181191,1e-08,230.5,230.46,15.18701726]
[1759428181597,31.22,230.49,230.46,15.18701726]
[1759428182015,1e-08,230.5,230.46,15.18701726]
[1759428182215,31.20000001,230.5,230.46,15.18701726]
[1759428182586,0.77675351,230.56,230.46,15.18701726]
[1759428182587,0.09675351,230.56,230.49,20.8]
[1759428183001,0.68,230.55,230.49,20.8]
[1759428183193,0.09675351,230.56,230.49,20.8]
[1759428183717,0.77675351,230.56,230.49,20.8]
[1759428184416,0.09675351,230.56,230.53,20.8]
[1759428185291,0.77675351,230.56,230.53,20.8]
[1759428185804,0.09675351,230.56,230.53,20.8]
[1759428186918,0.09675351,230.56,230.54,4.33764205]
[1759428187306,31.27675351,230.56,230.54,4.33764205]
[1759428187705,0.09675351,230.56,230.54,4.33764205]
[1759428188018,4.33558216,230.65,230.54,4.33764205]
[1759428188019,0.68,230.62,230.57,20.8]
[1759428188325,0.68,230.61,230.57,20.8]
[1759428188491,90.34022549,230.63,230.57,20.8]
[1759428188694,0.68,230.62,230.57,20.8]
[1759428188895,0.68,230.61,230.58,4.33688958]
[1759428189209,59.18022549,230.63,230.58,4.33688958]
[1759428189410,59.86022549,230.63,230.61,20.8]
[1759428190019,0.68,230.62,230.61,20.8]
[1759428190518,31.98,230.62,230.58,25.13688958]
[1759428190717,0.68,230.61,230.58,25.13688958]
[1759428190903,0.68,230.6,230.58,25.13688958]
[1759428191099,31.32,230.59,230.58,25.13688958]
[1759428191319,32.0,230.59,230.58,25.13688958]
[1759428191898,32.0,230.59,230.58,20.8]
[1759428192648,32.0,230.59,230.58,25.13688958]
[1759428193100,32.0,230.59,230.58,20.8]
[1759428193428,32.0,230.59,230.55,20.8]
[1759428193601,0.68,230.58,230.55,25.13744435]
[1759428193998,59.18022549,230.63,230.55,4.33744435]
[1759428194294,59.18022549,230.63,230.55,15.18107913]
[1759428194295,59.86022549,230.63,230.55,15.18107913]
[1759428194498,31.3,230.62,230.58,20.8]
[1759428194709,59.18022549,230.63,230.59,20.8]
[1759428194927,31.3,230.62,230.59,20.8]
[1759428195114,31.3,230.62,230.6,4.33651344]
[1759428195831,31.3,230.62,230.61,0.5]
[1759428196309,59.18022549,230.63,230.62,20.8]
[1759428197020,91.24022549,230.63,230.62,25.13613736]
[1759428197200,91.24022549,230.63,230.61,0.5]
[1759428197402,0.68,230.62,230.6,20.8]
[1759428197605,59.18022549,230.63,230.61,4.33632484]
[1759428197802,31.38,230.62,230.61,25.13632484]
[1759428198707,59.18022549,230.63,230.61,25.13632484]
[1759428199106,31.38,230.62,230.61,25.13632484]
[1759428199834,32.06,230.62,230.61,25.13632484]
[1759428200437,32.06,230.62,230.54,13.01998567]
[1759428200438,32.06,230.62,230.6,4.33649773]
[1759428200618,0.68,230.61,230.6,4.33649773]
[1759428200813,0.68,230.61,230.56,0.5]
[1759428201013,0.68,230.6,230.57,4.33697031]
[1759428201215,31.34,230.59,230.58,20.8]
[1759428201629,32.02,230.59,230.58,20.8]
[1759428202016,31.34,230.59,230.58,20.8]
[1759428203136,0.68,230.62,230.59,4.3367015]
[1759428203333,32.0,230.61,230.59,4.3367015]
[1759428203833,31.32,230.61,230.59,4.3367015]
[1759428204036,0.67,230.6,230.57,4.33707767]
[1759428204237,0.67,230.59,230.57,4.33707767]
[1759428204427,31.99,230.58,230.57,4.33707767]
[1759428205024,31.32,230.58,230.57,4.33707767]
[1759428207135,31.32,230.58,230.56,0.5]
[1759428207136,31.99,230.58,230.56,4.83726254]
[1759428207340,0.67,230.57,230.56,0.5]
[1759428207521,0.67,230.57,230.54,4.33756466]
[1759428207715,31.32,230.58,230.55,20.8]
[1759428207716,0.67,230.56,230.55,20.8]
[1759428208023,0.67,230.56,230.52,3.50937554]
[1759428208225,31.28,230.55,230.52,20.8]
[1759428208538,0.67,230.54,230.49,15.18478281]
[1759428208716,31.26,230.53,230.47,21.69452237]
[1759428208916,31.26,230.52,230.47,34.71846471]
[1759428209230,31.26,230.51,230.5,20.8]
[1759428209432,31.26,230.51,230.5,24.20961417]
[1759428209637,0.67,230.58,230.5,24.20961417]
[1759428209935,10.87647521,230.62,230.5,24.20961417]
[1759428209936,31.95,230.57,230.54,20.8]
[1759428210116,0.67,230.56,230.54,20.8]
[1759428210315,0.67,230.56,230.43,6.0727006]
[1759428210316,10.87647521,230.54,230.31,4.34197386]
[1759428210520,35.61711206,230.57,230.32,10.85446335]
[1759428210521,10.87647521,230.52,230.32,10.85446335]
[1759428210822,18.59,230.51,230.33,13.5318629]
[1759428211142,0.67,230.5,230.34,16.876618]
[1759428211313,0.69,230.49,230.34,36.876618]
[1759428211511,0.69,230.48,230.34,16.876618]
[1759428211723,0.69,230.47,230.34,16.876618]
[1759428211918,20.65,230.46,230.39,20.8]
[1759428212122,17.7,230.45,230.36,15.19360999]
[1759428212340,17.7,230.45,230.39,20.8]
[1759428212536,17.7,230.45,230.36,15.19360999]
[1759428212741,0.69,230.44,230.36,15.19360999]
[1759428212928,0.69,230.44,230.39,20.8]
[1759428213441,0.69,230.43,230.39,20.8]
[1759428213640,0.69,230.42,230.39,20.8]
[1759428213855,0.69,230.41,230.36,4.34103142]
[1759428214019,17.7,230.45,230.34,4.34140835]
[1759428214020,0.69,230.4,230.34,4.34140835]
[1759428214228,31.4,230.39,230.34,15.19492923]
[1759428214526,32.09,230.39,230.37,20.8]
[1759428214856,32.09,230.39,230.34,15.19492923]
[1759428214857,0.69,230.38,230.34,15.19492923]
[1759428215159,0.69,230.37,230.34,4.34140835]
[1759428215319,31.4,230.39,230.34,4.34140835]
[1759428215320,0.69,230.36,230.34,25.14140835]
[1759428215525,0.69,230.36,230.34,4.34140835]
[1759428215733,31.4,230.39,230.34,15.19492923]
[1759428217418,31.4,230.39,230.37,20.8]
[1759428217619,31.4,230.39,230.38,4.34065457]
[1759428218040,32.09,230.39,230.38,4.34065457]
[1759428218569,10.87647521,230.48,230.38,4.34065457]
[1759428218722,0.69,230.48,230.41,20.8]
[1759428218924,31.38,230.55,230.38,74.35570663]
[1759428218925,0.69,230.47,230.42,20.8]
[1759428219245,0.69,230.46,230.43,20.8]
[1759428219432,31.46,230.49,230.43,20.8]
[1759428219433,0.69,230.45,230.43,20.8]
[1759428219628,31.46,230.49,230.42,20.8]
[1759428219935,0.69,230.48,230.42,20.8]
[1759428220146,0.69,230.47,230.39,25.14046616]
[1759428220451,31.46,230.49,230.39,25.14046616]
[1759428220452,0.69,230.46,230.39,25.14046616]
[1759428220650,0.69,230.45,230.37,4.34066632]
[1759428220848,35.79858832,230.49,230.37,4.34066632]
[1759428220849,0.69,230.44,230.41,0.5]
[1759428221258,0.69,230.44,230.34,4.34140835]
[1759428221424,0.69,230.43,230.36,20.8]
[1759428221623,32.15,230.42,230.36,25.14099134]
[1759428221823,0.69,230.41,230.36,25.14099134]
[1759428222045,0.69,230.4,230.36,25.14099134]
[1759428222235,31.46,230.42,230.36,25.14099134]
[1759428222236,0.69,230.39,230.36,25.14099134]
[1759428222438,0.69,230.38,230.36,25.14099134]
[1759428222751,0.69,230.37,230.36,20.8]
[1759428223529,31.46,230.42,230.36,25.14089532]
[1759428223530,0.69,230.4,230.36,25.14089532]
[1759428223751,0.69,230.39,230.36,25.14089532]
[1759428223941,0.69,230.38,230.36,25.14089532]
[1759428224755,31.46,230.42,230.33,10.85378967]
[1759428224756,0.69,230.37,230.33,20.8]
[1759428224958,0.69,230.36,230.33,20.8]
[1759428225165,0.69,230.36,230.3,11.05516685]
[1759428225481,0.69,230.36,230.33,20.8]
[1759428225628,0.69,230.36,230.33,25.1414368]
[1759428225828,0.69,230.35,230.33,25.1414368]
[1759428226048,31.46,230.42,230.33,25.1414368]
[1759428226049,0.69,230.4,230.33,25.1414368]
[1759428226229,0.69,230.4,230.33,36.49542889]
[1759428226433,0.69,230.4,230.33,35.99542889]
[1759428226830,31.46,230.42,230.3,0.2]
[1759428226831,10.87647521,230.41,230.3,0.2]
[1759428227139,0.69,230.39,230.3,4.54215897]
[1759428227345,0.69,230.38,230.32,20.8]
[1759428227748,10.87647521,230.39,230.32,25.14176515]
[1759428227946,0.69,230.37,230.32,20.8]
[1759428228152,0.69,230.36,230.32,20.8]
[1759428228356,0.69,230.35,230.32,20.8]
[1759428228559,0.69,230.39,230.34,20.8]
[1759428228736,0.69,230.38,230.34,20.8]
[1759428228944,0.69,230.4,230.34,20.8]
[1759428229139,0.69,230.4,230.32,15.19623298]
[1759428229363,0.69,230.4,230.35,20.8]
[1759428229540,31.46,230.42,230.35,20.8]
[1759428229746,0.69,230.41,230.35,20.8]
[1759428230072,0.69,230.41,230.36,4.34103142]
[1759428230245,31.46,230.42,230.35,20.8]
[1759428230246,0.69,230.4,230.35,20.8]
[1759428230438,0.69,230.39,230.35,25.14121292]
[1759428230639,0.69,230.38,230.33,4.34155551]
[1759428230869,35.79990289,230.42,230.32,20.8]
[1759428230870,0.69,230.37,230.32,20.8]
[1759428231035,35.79990289,230.42,230.32,20.8]
[1759428231036,0.69,230.36,230.32,20.8]
[1759428231642,0.69,230.35,230.32,20.8]
[1759428232168,0.69,230.35,230.32,25.14177033]
[1759428234665,0.69,230.35,230.32,20.8]
[1759428234869,0.69,230.34,230.31,25.14193046]
[1759428235167,0.69,230.33,230.31,20.8]
[1759428235343,15.19097221,230.4,230.3,0.2]
[1759428235541,0.69,230.39,230.3,0.2]
[1759428236149,4.34065457,230.38,230.3,4.54210178]
[1759428236350,0.69,230.37,230.3,4.54210178]
[1759428236573,0.69,230.36,230.3,4.54210178]
[1759428236974,0.69,230.35,230.3,4.54210178]
[1759428237485,0.69,230.34,230.3,0.2]
[1759428238282,0.69,230.34,230.3,4.54214126]
[1759428238978,31.38,230.35,230.3,4.54214126]
[1759428239178,0.69,230.34,230.3,4.54214126]
[1759428239562,31.38,230.35,230.3,4.54214126]
[1759428239563,0.69,230.33,230.3,4.54214126]
[1759428239972,31.38,230.35,230.3,4.54214126]
[1759428240384,31.38,230.35,230.33,20.8]
[1759428241194,32.07,230.35,230.33,20.8]
[1759428241559,0.71,230.34,230.32,4.34176406]
[1759428241895,0.71,230.33,230.3,25.34201439]
[1759428242196,31.38,230.35,230.3,15.39742038]
[1759428242489,31.38,230.35,230.3,15.89742038]
[1759428242667,31.38,230.35,230.31,0.5]
[1759428242876,31.38,230.35,230.32,0.5]
[1759428243068,31.38,230.35,230.33,0.5]
[1759428243254,10.87647521,230.44,230.3,15.39742038]
[1759428243454,0.71,230.42,230.35,20.8]
[1759428243681,0.71,230.41,230.35,20.8]
[1759428245676,0.71,230.41,230.37,20.8]
[1759428245983,31.36,230.43,230.37,20.8]
[1759428245984,0.71,230.4,230.37,20.8]
[1759428246165,0.71,230.4,230.34,20.8]
[1759428246856,0.71,230.4,230.32,4.84178534]
[1759428246857,0.71,230.4,230.33,20.8]
[1759428247273,0.71,230.4,230.35,20.8]
[1759428247669,4.33993439,230.42,230.35,20.8]
[1759428247870,0.71,230.41,230.37,20.8]
[1759428248085,0.71,230.4,230.37,20.8]
[1759428249281,0.71,230.4,230.37,25.14081395]
[1759428250685,31.36,230.43,230.37,25.14081395]
[1759428250883,31.36,230.43,230.37,4.34081395]
[1759428251072,31.36,230.43,230.37,15.19292142]
[1759428252269,31.36,230.43,230.4,20.8]
[1759428252479,32.07,230.43,230.4,20.8]
[1759428252871,0.71,230.42,230.37,4.34081395]
[1759428253071,0.71,230.41,230.37,4.34081395]
[1759428253388,0.71,230.41,230.33,11.35361342]
[1759428253389,0.71,230.41,230.39,4.34046616]
[1759428253981,31.36,230.43,230.39,4.34046616]
[1759428254366,0.71,230.42,230.39,4.34046616]
[1759428255286,0.71,230.42,230.38,25.14065335]
[1759428255525,0.71,230.41,230.38,25.14065335]
[1759428255671,32.07,230.43,230.38,25.14065335]
[1759428255874,0.71,230.42,230.38,25.14065335]
[1759428256715,0.71,230.41,230.38,25.14065335]
[1759428256992,32.07,230.43,230.38,25.14065335]
[1759428257284,0.71,230.42,230.38,25.14065335]
[1759428258381,0.1,230.65,230.5,20.8]
[1759428258582,0.71,230.62,230.51,27.75145839]
[1759428258792,0.71,230.62,230.52,0.5]
[1759428259174,0.71,230.62,230.55,20.8]
[1759428259472,0.71,230.62,230.56,20.8]
[1759428259781,0.71,230.62,230.57,4.33707767]
[1759428260697,31.56,230.64,230.57,4.33707767]
[1759428260871,32.27,230.64,230.57,4.33707767]
[1759428261071,32.27,230.64,230.6,20.8]
[1759428261271,59.89022549,230.63,230.6,20.8]
[1759428261509,59.18022549,230.63,230.6,20.8]
[1759428261796,59.89022549,230.63,230.6,20.8]
[1759428262202,0.71,230.62,230.57,25.13707767]
[1759428262504,59.18022549,230.63,230.57,25.13707767]
[1759428262707,59.18022549,230.63,230.58,20.8]
[1759428262876,59.89022549,230.63,230.58,20.8]
[1759428263076,59.89022549,230.63,230.59,4.3367015]
[1759428263503,0.71,230.62,230.58,20.8]
[1759428263776,0.72,230.61,230.56,25.1371864]
[1759428263993,32.22,230.6,230.57,20.8]
[1759428264377,0.72,230.59,230.54,25.13746921]
[1759428264597,0.72,230.58,230.54,25.13746921]
[1759428264894,31.5,230.6,230.54,25.13746921]
[1759428265098,31.5,230.6,230.57,4.33707767]
[1759428266903,32.22,230.6,230.57,4.33707767]
[1759428267091,31.5,230.6,230.57,4.33707767]
[1759428268602,31.5,230.6,230.59,20.8]
[1759428269591,59.18022549,230.63,230.59,36.47845526]
[1759428269781,59.18022549,230.63,230.59,15.67845526]
[1759428270106,59.18022549,230.63,230.62,20.8]
[1759428270709,59.18022549,230.63,230.62,21.3]
[1759428271592,59.18022549,230.63,230.62,25.63613736]
[1759428272888,1e-08,230.63,230.62,36.51261257]
[1759428273217,1e-08,230.63,230.62,67.97261257]
[1759428274010,1e-08,230.63,230.62,36.51261257]
[1759428274206,1e-08,230.63,230.62,67.97261257]
[1759428274417,1e-08,230.63,230.62,74.9928276]
[1759428274587,1e-08,230.65,230.63,10.87647521]
[1759428274793,1e-08,230.65,230.64,31.44]
[1759428275012,1e-08,230.65,230.64,18.39669024]
[1759428275317,0.1,230.74,230.64,49.83669024]
[1759428275530,0.1,230.74,230.67,20.8]
[1759428275721,19.22589473,230.76,230.71,20.8]
[1759428275722,17.06289473,230.76,230.71,20.8]
[1759428276020,17.72289473,230.76,230.71,20.8]
[1759428276323,17.06289473,230.76,230.75,31.67647521]
[1759428276497,17.06289473,230.76,230.75,32.17647521]
[1759428277093,17.06289473,230.76,230.75,20.8]
[1759428277713,17.06289473,230.76,230.75,25.13369447]
[1759428280090,17.06289473,230.76,230.75,25.63369447]
[1759428280291,17.06289473,230.76,230.75,25.13369447]
[1759428280515,0.25370588,230.82,230.79,20.8]
[1759428280720,0.25370588,230.82,230.76,11.37647521]
[1759428280922,0.25370588,230.82,230.8,20.8]
[1759428281516,0.25370588,230.82,230.78,20.8]
[1759428281804,0.25370588,230.82,230.8,20.8]
[1759428282326,0.25370588,230.82,230.8,27.82021503]
[1759428282702,0.91370588,230.82,230.8,27.82021503]
[1759428283026,0.25370588,230.82,230.8,27.82021503]
[1759428283206,0.25370588,230.82,230.8,28.32021503]
[1759428283403,0.25370588,230.82,230.8,27.82021503]
[1759428283802,0.25370588,230.82,230.81,4.33256791]
[1759428284529,0.91370588,230.82,230.79,28.61694709]
[1759428284899,0.25370588,230.82,230.79,28.61694709]
[1759428285727,0.66,230.81,230.79,3.48415324]
[1759428285905,0.25370588,230.82,230.79,25.13291499]
[1759428286315,0.91370588,230.82,230.79,35.96527341]
[1759428286632,0.25370588,230.82,230.79,39.39767836]
[1759428287303,0.91370588,230.82,230.79,28.56531994]
[1759428287524,0.66,230.81,230.79,7.76531994]
[1759428287724,0.25370588,230.82,230.79,28.56531994]
[1759428287933,0.25370588,230.82,230.79,39.39767836]
[1759428288131,0.91370588,230.82,230.79,39.39767836]
[1759428288634,0.25370588,230.82,230.79,39.39767836]
[1759428289008,0.91370588,230.82,230.79,39.39767836]
[1759428289328,0.25370588,230.82,230.79,39.39767836]
[1759428289727,0.66,230.81,230.79,28.56531994]
[1759428289930,0.66,230.8,230.76,4.33350667]
[1759428290118,32.1,230.8,230.78,20.8]
[1759428290512,0.66,230.79,230.78,20.8]
[1759428290913,0.25370588,230.82,230.78,20.8]
[1759428291115,32.1,230.81,230.78,20.8]
[1759428291332,0.66,230.8,230.76,20.8]
[1759428291509,0.66,230.79,230.75,4.33368403]
[1759428291716,0.66,230.78,230.71,15.21085809]
[1759428291914,31.44,230.77,230.71,22.73107312]
[1759428292112,31.44,230.77,230.75,20.8]
[1759428293612,0.25370588,230.82,230.76,0.5]
[1759428293842,31.67370588,230.82,230.8,20.8]
[1759428295850,31.67370588,230.82,230.81,4.33256791]
[1759428299440,32.33370588,230.82,230.81,4.33256791]
[1759428299635,31.67370588,230.82,230.81,4.33256791]
[1759428300247,0.25370588,230.82,230.81,4.33256791]
[1759428301336,0.25370588,230.82,230.81,4.83256791]
[1759428301536,399.65828147,230.85,230.84,20.8]
[1759428301759,400.34828147,230.85,230.84,20.8]
[1759428302052,400.34828147,230.85,230.81,25.13256791]
[1759428302346,32.03,230.84,230.81,25.13256791]
[1759428302522,0.19,230.83,230.81,4.33256791]
[1759428302722,399.65828147,230.85,230.81,15.16398769]
[1759428302941,399.65828147,230.85,230.82,0.66]
[1759428303244,399.65828147,230.85,230.82,27.82021503]
[1759428303448,399.65828147,230.85,230.83,0.66]
[1759428303650,399.65828147,230.85,230.81,26.0404629]
[1759428303651,399.65828147,230.85,230.84,28.48021503]
[1759428303853,377.04303389,230.85,230.84,39.35669024]
[1759428304029,377.04303389,230.85,230.84,27.82021503]
[1759428304431,377.04303389,230.85,230.84,32.15221988]
[1759428305842,377.04303389,230.85,230.84,32.81221988]
[1759428306033,343.91291038,230.85,230.84,64.17221988]
[1759428306235,176.68965997,230.91,230.87,20.0]
[1759428306445,2.71136491,231.15,230.85,10.87647521]
[1759428306446,2.71136491,231.15,230.97,20.8]
[1759428306755,21.61319036,231.35,230.9,17.36087916]
[1759428306756,0.95353135,231.33,231.19,10.87647521]
[1759428306938,0.95353135,231.33,231.2,7.02021503]
[1759428306939,32.22353135,231.33,231.2,7.02021503]
[1759428307253,32.22353135,231.33,231.07,4.4956113]
[1759428307254,0.69,231.25,231.15,3.51974723]
[1759428307454,3.05594853,231.33,231.11,20.8]
[1759428307455,404.32418446,231.26,231.11,20.8]
[1759428307652,400.0,231.26,231.12,31.67647521]
[1759428307831,400.0,231.26,231.17,20.8]
[1759428308033,400.0,231.26,231.19,10.87647521]
[1759428308339,331.37690581,231.26,231.25,53.38194578]
[1759428308545,156.39220632,231.26,231.25,105.65199534]
[1759428308854,1e-08,231.33,231.32,10.87647521]
[1759428309050,579.59774879,231.45,231.4,20.8]
[1759428309247,559.67265788,231.45,231.44,20.8]
[1759428309554,473.98192872,231.45,231.44,31.67647521]
[1759428309758,473.98192872,231.45,231.44,101.94908487]
[1759428309759,434.1317469,231.45,231.44,101.94908487]
[1759428310056,263.50423078,231.45,231.44,68.70908487]
[1759428310229,152.24657232,231.45,231.44,48.70908487]
[1759428310428,102.40657232,231.45,231.44,20.8]
[1759428310637,55.13111589,231.45,231.44,85.48695297]
[1759428310837,33.92,231.58,231.47,20.8]
[1759428311039,0.69,231.65,231.54,20.8]
[1759428311237,400.0,231.66,231.56,20.8]
[1759428311535,400.0,231.66,231.5,20.0]
[1759428311536,400.0,231.66,231.58,20.8]
[1759428311745,400.0,231.66,231.6,20.8]
[1759428311958,34.14,231.65,231.6,20.8]
[1759428312362,10.87647521,231.63,231.44,21.13047776]